fUSD/lending_fUSD_20240421
["ID","MTS","AMOUNT","RATE_DAILY","PERIOD"]
[323147976,1713715981159,-2000.0,0.00012998,2]
[323147977,1713715982337,-281.0,0.00012998,2]
[323147978,1713716001819,182.78,0.00010617,2]
[323147979,1713716020730,408.44629625,0.00010617,2]
[323147980,1713716025177,365.73222347,0.00010617,2]
[323147981,1713716030543,361.19639393,0.00010617,2]
[323147982,1713716034745,306.04689831,0.00010617,2]
[323147983,1713716041192,365.73222347,0.00010617,2]
[323147984,1713716043671,-1983.42692654,0.00012898,2]
[323147985,1713716043691,-164.47454881,0.00012899,2]
[323147986,1713716043713,-536.63533916,0.000129,2]
[323147987,1713716043734,-179.60671853,0.00012997,2]
[323147988,1713716043756,-135.85646696,0.00012997,2]
[323147989,1713716044520,-129.21812948,0.00012997,2]
[323147990,1713716044541,-181.19301294,0.00012997,2]
[323147991,1713716044562,-179.47570412,0.00012997,2]
[323147992,1713716044582,-511.59486075,0.00012997,2]
[323147993,1713716044603,-318.05990744,0.00012997,2]
[323147994,1713716044625,-1680.45838527,0.00012997,2]
[323147995,1713716045223,-3000.0,0.00012997,2]
[323147996,1713716047141,337.38618301,0.00010617,2]
[323147997,1713716047277,-3000.0,0.00012997,2]
[323147998,1713716047511,-3000.0,0.00012997,2]
[323147999,1713716048093,-3000.0,0.00012997,2]
[323148000,1713716048922,-3000.0,0.00012997,2]
[323148001,1713716049589,-3000.0,0.00012997,2]
[323148002,1713716050288,-3000.0,0.00012997,2]
[323148003,1713716051056,-3000.0,0.00012997,2]
[323148004,1713716053503,-1075.00214384,0.00012997,2]
[323148005,1713716053529,-202.26348816,0.00012997,2]
[323148006,1713716053550,-376.71560002,0.00012997,2]
[323148007,1713716053573,-1346.01876798,0.00012997,2]
[323148008,1713716057179,365.73222347,0.00010617,2]
[323148009,1713716058254,-150.09824119,0.00012897,2]
[323148010,1713716058277,-152.90175881,0.00012997,2]
[323148012,1713716070483,299.59736826,8.494e-05,2]
[323148013,1713716073020,173.03375485,0.00010617,2]
[323148014,1713716074760,298.71922923,0.00010617,2]
[323148015,1713716076671,155.0,0.00010617,2]
[323148016,1713716076747,155.0,0.00010617,2]
[323148017,1713716077191,365.73222347,0.00010617,2]
[323148018,1713716078572,361.19639393,0.00010617,2]
[323148019,1713716078735,408.44629625,0.00010617,2]
[323148020,1713716079525,344.30138098,0.00010617,2]
[323148021,1713716080328,323.6720809,0.00010617,2]
[323148022,1713716082241,155.0,0.00010617,2]
[323148023,1713716127233,155.0,0.00010617,2]
[323148024,1713716129040,298.71922923,0.00010617,2]
[323148025,1713716129138,361.19639393,0.00010617,2]
[323148026,1713716130789,155.0,0.00010617,2]
[323148027,1713716132716,288.40093877,0.00010617,2]
[323148028,1713716134028,344.30138098,0.00010617,2]
[323148029,1713716135267,155.0,0.00010617,2]
[323148030,1713716135541,173.03375485,0.00010617,2]
[323148031,1713716135739,319.90177754,0.00010617,2]
[323148032,1713716136896,323.6720809,0.00010617,2]
[323148033,1713716139811,365.73222347,0.00010617,2]
[323148034,1713716141270,408.44629625,0.00010617,2]
[323148035,1713716143062,361.19639393,0.00010617,2]
[323148036,1713716145175,155.48161122,0.00010617,2]
[323148037,1713716148438,288.40093877,0.00010617,2]
[323148038,1713716148750,205.39597181,0.00010617,2]
[323148041,1713716150343,344.30138098,0.00010617,2]
[323148042,1713716150775,298.71922923,0.00010617,2]
[323148043,1713716151725,319.90177754,0.00010617,2]
[323148044,1713716153250,155.0,0.00010617,2]
[323148045,1713716153693,365.73222347,0.00010617,2]
[323148046,1713716154832,323.6720809,0.00010617,2]
[323148047,1713716156689,2831.32036828,0.00010617,2]
[323148048,1713716156712,13103.51314353,0.00010617,2]
[323148049,1713716157533,173.03375485,0.00010617,2]
[323148050,1713716159241,408.44629625,0.00010617,2]
[323148051,1713716163106,361.19639393,0.00010617,2]
[323148052,1713716167168,288.40093877,0.00010617,2]
[323148053,1713716167571,345.54675953,0.00010617,2]
[323148054,1713716170100,344.30138098,0.00010617,2]
[323148055,1713716171700,319.90177754,0.00010617,2]
[323148056,1713716171738,365.73222347,0.00010617,2]
[323148057,1713716174843,323.6720809,0.00010617,2]
[323148058,1713716177257,155.0,0.00010617,2]
[323148059,1713716177288,408.22029797,0.00010617,2]
[323148060,1713716181067,360.94632093,0.00010617,2]
[323148061,1713716182143,173.03375485,0.00010617,2]
[323148062,1713716182446,288.40093877,0.00010617,2]
[323148063,1713716188048,355.95825143,0.00010617,2]
[323148064,1713716189718,280.66723176,0.00010617,2]
[323148065,1713716193088,290.40382031,0.00010617,2]
[323148066,1713716195306,174.14325529,0.00010617,2]
[323148067,1713716199544,173.03375485,0.00010617,2]
[323148068,1713716204617,264.95404165,0.00010617,2]
[323148069,1713716215553,158.94284808,0.00010617,2]
[323148071,1713716278865,777.15,0.00010324,2]
[323148072,1713716383932,724.74679663,0.00011384,2]
[323148073,1713716383953,275.25320337,0.00011384,2]
[323148074,1713716395803,8236.82,0.00011399,2]
[323148075,1713716404269,10000.0,0.00012,2]
[323148076,1713716409857,172.14,0.00011408,2]
[323148077,1713716423722,-359.2642544,0.00012011,2]
[323148078,1713716428737,-459.31071612,0.00012011,2]
[323148079,1713716431984,-459.31071612,0.00012011,2]
[323148080,1713716435574,-199.45831126,0.00012011,2]
[323148081,1713716435598,-259.85240486,0.00012012,2]
[323148082,1713716436093,-199.45831126,0.00012012,2]
[323148083,1713716465593,259.85240486,0.00012,2]
[323148084,1713716465619,459.31071612,0.00012,2]
[323148085,1713716465643,459.31071612,0.00012,2]
[323148086,1713716465668,459.31071612,0.00012,2]
[323148087,1713716465692,459.31071612,0.00012,2]
[323148088,1713716465717,459.31071612,0.00012,2]
[323148089,1713716465741,159.31071612,0.00012,2]
[323148090,1713716465765,159.31071612,0.00012,2]
[323148091,1713716465788,159.31071612,0.00012,2]
[323148092,1713716466620,6966.08186618,0.00012,2]
[323148093,1713716483920,156.12,0.00011604,2]
[323148094,1713716484180,156.12,0.00011705,2]
[323148095,1713716484371,156.12,0.00011806,2]
[323148096,1713716484793,156.12,0.00011907,2]
[323148097,1713716486597,545.60472567,9.61e-05,2]
[323148098,1713716504654,552.99543479,9.61e-05,2]
[323148099,1713716511103,1852.42,0.00011493,2]
[323148100,1713716525240,19672.90593508,9.61e-05,2]
[323148101,1713716530621,1782.49,0.00011493,2]
[323148102,1713716539304,19672.90593508,9.61e-05,2]
[323148103,1713716549420,656.38,0.00011489,2]
[323148104,1713716559228,19647.69480173,9.61e-05,2]
[323148105,1713716574276,173.8,9.179e-05,2]
[323148106,1713716644790,4093.82,0.00011551,2]
[323148107,1713716671371,250.0,0.00011549,2]
[323148108,1713716736076,-156.12,0.00012007,2]
[323148109,1713716736100,-443.88,0.00012011,2]
[323148110,1713716767939,163.85344086,0.00011912,2]
[323148111,1713716775060,962.71,0.00011567,2]
[323148112,1713716789222,884.99,9.557e-05,2]
[323148113,1713716789609,884.99,0.00011821,2]
[323148114,1713716792433,1266.98,0.00011475,2]
[323148115,1713716795320,1859.86,0.00011483,2]
[323148116,1713716801930,23900.0,0.00011483,2]
[323148118,1713716869360,866.20855631,0.00011483,2]
[323148119,1713716870550,150.0,0.00011606,2]
[323148120,1713716877033,323.59682005,0.00011483,2]
[323148121,1713716880270,200.0,0.00011619,2]
[323148122,1713716891349,355.27093283,0.00011483,2]
[323148123,1713716938876,173.02,0.0001161,2]
[323148124,1713716961667,156.12,0.00011718,2]
[323148134,1713717031958,-12000.0,0.00012008,2]
[323148135,1713717031973,-2409.32,0.00012008,2]
[323148136,1713717032014,-700.79932686,0.00012008,2]
[323148137,1713717032030,-602.96,0.00012008,2]
[323148138,1713717032074,-405.61215628,0.00012008,2]
[323148139,1713717032086,-3317.47628346,0.00012008,2]
[323148140,1713717032095,-532.29527738,0.00012009,2]
[323148141,1713717032104,-155.44721549,0.00012012,2]
[323148142,1713717032115,-159.82229971,0.00012012,2]
[323148143,1713717032124,-2298.5,0.00012055,2]
[323148144,1713717032134,-175.59,0.00012065,2]
[323148145,1713717032143,-212.1,0.00012109,2]
[323148146,1713717032154,-212.1,0.00012112,2]
[323148147,1713717032163,-212.1,0.00012115,2]
[323148148,1713717032176,-150.0,0.00012117,2]
[323148149,1713717032186,-150.0,0.00012117,2]
[323148150,1713717032195,-212.1,0.00012118,2]
[323148151,1713717032204,-150.99,0.00012118,2]
[323148152,1713717032214,-499.99,0.00012118,2]
[323148153,1713717032224,-657.97,0.00012118,2]
[323148154,1713717032233,-212.1,0.00012121,2]
[323148155,1713717032242,-990.71,0.00012121,2]
[323148156,1713717032253,-150.99,0.00012121,2]
[323148157,1713717032263,-158.42,0.00012124,2]
[323148158,1713717032276,-499.99,0.00012124,2]
[323148159,1713717032286,-3119.15,0.00012124,2]
[323148160,1713717032296,-231.49,0.00012124,2]
[323148161,1713717032305,-238.66892796,0.00012124,2]
[323148218,1713717033734,-17.78584023,0.00012124,2]
[323148219,1713717033755,-17.44523181,0.00012124,2]
[323148220,1713717033764,-1590.57349611,0.00012124,2]
[323148221,1713717033777,-479.67727252,0.00012124,2]
[323148222,1713717033842,-602.76216,0.00012124,2]
[323148223,1713717033904,-879.52707137,0.00012124,2]
[323148224,1713717033913,-150.99,0.00012124,2]
[323148225,1713717033923,-212.1,0.00012124,2]
[323148226,1713717033933,-212.1,0.00012128,2]
[323148227,1713717033942,-212.1,0.00012131,2]
[323148228,1713717033952,-212.1,0.00012134,2]
[323148229,1713717033962,-212.1,0.00012137,2]
[323148230,1713717033972,-212.1,0.0001214,2]
[323148231,1713717033981,-212.1,0.00012144,2]
[323148232,1713717033990,-212.1,0.00012147,2]
[323148233,1713717033999,-212.1,0.0001215,2]
[323148234,1713717034008,-212.1,0.00012153,2]
[323148235,1713717034017,-212.1,0.00012156,2]
[323148236,1713717034028,-212.1,0.00012159,2]
[323148237,1713717034037,-212.1,0.00012163,2]
[323148238,1713717034046,-212.1,0.00012166,2]
[323148239,1713717034056,-212.1,0.00012169,2]
[323148240,1713717034066,-159.82229971,0.00012234,2]
[323148241,1713717034075,-163.17,0.00012296,2]
[323148242,1713717034084,-669.0129911,0.00012305,2]
[323148243,1713717034093,-156.12,0.00012329,2]
[323148244,1713717034102,-159.82229971,0.00012455,2]
[323148245,1713717034112,-159.82229971,0.00012677,2]
[323148246,1713717034121,-150.0,0.00012696,2]
[323148247,1713717034131,-150.0,0.00012698,2]
[323148248,1713717034140,-150.0,0.00012722,2]
[323148249,1713717034151,-150.0,0.00012731,2]
[323148250,1713717034160,-150.0,0.00012734,2]
[323148251,1713717034170,-150.0,0.00012774,2]
[323148252,1713717034349,-150.0,0.00012776,2]
[323148253,1713717034359,-150.0,0.00012784,2]
[323148254,1713717034368,-150.0,0.00012785,2]
[323148255,1713717034378,-1500.0,0.0001279,2]
[323148256,1713717034389,-150.0,0.00012791,2]
[323148257,1713717034399,-150.0,0.00012794,2]
[323148258,1713717034409,-3976.7739,0.00012799,2]
[323148259,1713717034419,-264.65891555,0.00012799,2]
[323148260,1713717034429,-300.0,0.00012804,2]
[323148261,1713717034439,-1000.0,0.00012807,2]
[323148262,1713717034448,-150.0,0.00012808,2]
[323148263,1713717034458,-150.0,0.00012809,2]
[323148264,1713717034467,-150.0,0.00012814,2]
[323148265,1713717034476,-150.0,0.00012826,2]
[323148266,1713717034486,-150.0,0.00012834,2]
[323148267,1713717034495,-150.0,0.00012845,2]
[323148268,1713717034505,-150.0,0.0001285,2]
[323148269,1713717034515,-150.0,0.00012859,2]
[323148270,1713717034527,-150.0,0.00012862,2]
[323148271,1713717034540,-150.0,0.00012862,2]
[323148272,1713717034549,-1582.06812,0.0001287,2]
[323148273,1713717034559,-150.0,0.00012877,2]
[323148274,1713717034569,-150.0,0.00012883,2]
[323148275,1713717034578,-150.0,0.00012883,2]
[323148276,1713717034587,-150.0,0.00012887,2]
[323148277,1713717034596,-150.0,0.00012888,2]
[323148278,1713717034605,-1277.84,0.00012893,2]
[323148279,1713717034614,-6181.96,0.00012893,2]
[323148280,1713717034623,-12997.33,0.00012893,2]
[323148281,1713717034632,-164.15,0.00012893,2]
[323148282,1713717034641,-150.0,0.00012896,2]
[323148283,1713717034650,-150.0,0.00012897,2]
[323148284,1713717034661,-159.82229971,0.00012898,2]
[323148285,1713717034671,-150.27177791,0.000129,2]
[323148286,1713717034681,-21039.05822062,0.000129,2]
[323148287,1713717034690,-370.01420752,0.000129,2]
[323148288,1713717034700,-173.32986147,0.000129,2]
[323148289,1713717034710,-150.0,0.00012908,2]
[323148290,1713717034719,-150.0,0.00012909,2]
[323148291,1713717034728,-150.0,0.00012913,2]
[323148292,1713717034738,-150.0,0.00012919,2]
[323148293,1713717034747,-150.0,0.00012921,2]
[323148294,1713717034756,-150.0,0.00012944,2]
[323148295,1713717034766,-150.0,0.00012944,2]
[323148296,1713717034778,-150.0,0.00012946,2]
[323148297,1713717034787,-150.0,0.00012954,2]
[323148298,1713717034797,-1241.15877716,0.00012956,2]
[323148299,1713717034807,-334308.16950922,0.00012957,2]
[323148326,1713717037873,-437.31152952,0.00012957,2]
[323148327,1713717037929,-464.0332556,0.00012957,2]
[323148328,1713717037985,-742.71129895,0.00012957,2]
[323148329,1713717038051,-210157.8594063,0.00012957,2]
[323148330,1713717038061,-150.0,0.00012958,2]
[323148331,1713717038070,-150.0,0.0001297,2]
[323148332,1713717038079,-150.0,0.0001298,2]
[323148333,1713717038088,-359.1129471,0.00012995,2]
[323148334,1713717038099,-150.0,0.00012996,2]
[323148335,1713717038108,-599.27979208,0.00012996,2]
[323148336,1713717038118,-563.63906285,0.00012997,2]
[323148337,1713717038127,-2354.67915026,0.00012997,2]
[323148338,1713717038136,-164.45404714,0.00012997,2]
[323148339,1713717038145,-2441.44795968,0.00012997,2]
[323148340,1713717038155,-179.51224539,0.00012997,2]
[323148341,1713717038165,-150.0,0.00012997,2]
[323148342,1713717038175,-25117.73229456,0.00012998,2]
[323148343,1713717038189,-2496.70486133,0.00012998,2]
[323148344,1713717038198,-1373.95179592,0.00012998,2]
[323148345,1713717038208,-1469.06455739,0.00012998,2]
[323148347,1713717038218,-16074.35235642,0.00012998,2]
[323148348,1713717038227,-694.0,0.00012998,2]
[323148349,1713717038237,-2364.88334609,0.00012999,2]
[323148350,1713717038246,-3774.89492129,0.00012999,2]
[323148351,1713717038255,-155.0,0.00012999,2]
[323148352,1713717038266,-1850.75844427,0.00012999,3]
[323148353,1713717038277,-57413.57620076,0.00013,2]
[323148354,1713717038296,-1803.0,0.00013,2]
[323148355,1713717038320,-6008.8,0.00013,2]
[323148357,1713717038332,-5965.35039479,0.00013,2]
[323148360,1713717038343,-9756578.04560199,0.00013,2]
[323148363,1713717038356,-881186.58076371,0.00013,2]
[323148365,1713717038367,-775.896,0.00013,2]
[323148541,1713717040023,-4181.7152844,0.00013,2]
[323148548,1713717040076,-467.26280354,0.00013,2]
[323148566,1713717040245,-19897.66183211,0.00013,2]
[323148571,1713717040352,-1110.59777071,0.00013,2]
[323148608,1713717042960,-268.30644199,0.00012947,2]
[323148609,1713717042970,-335.22708271,0.00013,2]
[323148611,1713717042982,-1231.76912544,0.00013,2]
[323148612,1713717042993,-48782.29288522,0.00013,2]
[323148613,1713717043022,-6009.99999999,0.00013,2]
[323148614,1713717043039,-565.8,0.00013,2]
[323148615,1713717043072,-5715.72049197,0.00013,2]
[323148642,1713717043873,-970.90733791,0.00013,2]
[323148643,1713717043885,-600.6,0.00013,2]
[323148644,1713717045458,173.8,0.00010857,2]
[323148675,1713717046146,-2001.5,0.00013,2]
[323148676,1713717046206,-6000.0,0.00013,2]
[323148677,1713717046217,-580.97721134,0.00013,2]
[323148678,1713717046229,-4930.0750536,0.00013,2]
[323148679,1713717046248,-193470.00000001,0.00013,2]
[323148680,1713717046260,-922.45000008,0.00013,2]
[323148681,1713717046273,-312.66909859,0.00013,2]
[323148682,1713717046291,-834.24869597,0.00013,2]
[323148683,1713717046739,-1940.34177998,0.00013,2]
[323148684,1713717046754,-266.8651973,0.00013,2]
[323148685,1713717046780,-590.71438547,0.00013,2]
[323148686,1713717046792,-2034.23656499,0.00013,2]
[323148687,1713717046810,-905.454,0.00013,2]
[323148688,1713717087554,567.06106105,0.00011697,2]
[323148689,1713717118424,7268.4428,0.00011908,2]
[323148690,1713717154685,-570.86,0.0001611,10]
[323148691,1713717217922,-165.86,0.00012261,2]
[323148692,1713717217943,-4409.42137827,0.00012342,2]
[323148693,1713717221290,1244.24905786,0.00012341,2]
[323148694,1713717236983,526.77797146,0.00012342,2]
[323148695,1713717283218,160.19027075,0.00012247,2]
[323148696,1713717287912,870.13,0.00010437,2]
[323148697,1713717295876,711.87544026,0.00012342,2]
[323148698,1713717314435,363.68897352,0.00012342,2]
[323148699,1713717318854,363.68897352,0.00012342,2]
[323148700,1713717361112,23900.0,0.00012297,2]
[323148701,1713717361569,262.86,0.00012297,2]
[323148704,1713717387171,840.0,0.00012251,2]
[323148705,1713717447604,8588.58,0.00012204,2]
[323148706,1713717476742,345.88,0.00012204,2]
[323148707,1713717476957,345.88,0.00012208,2]
[323148708,1713717477200,345.88,0.00012211,2]
[323148709,1713717477620,345.88,0.00012214,2]
[323148710,1713717477830,345.88,0.00012217,2]
[323148711,1713717478063,345.88,0.0001222,2]
[323148712,1713717478335,345.88,0.00012224,2]
[323148713,1713717478539,345.88,0.00012227,2]
[323148714,1713717479496,345.88,0.0001223,2]
[323148715,1713717479618,345.88,0.00012233,2]
[323148716,1713717479703,345.88,0.00012236,2]
[323148717,1713717479773,345.88,0.0001224,2]
[323148718,1713717479850,345.88,0.00012243,2]
[323148719,1713717479899,153.79,0.00012259,2]
[323148720,1713717479972,345.88,0.00012246,2]
[323148721,1713717480028,153.79,0.00012292,2]
[323148722,1713717480185,345.88,0.00012249,2]
[323148723,1713717480238,153.79,0.00012326,2]
[323148724,1713717480398,345.88,0.00012252,2]
[323148725,1713717480651,345.88,0.00012256,2]
[323148726,1713717480874,345.88,0.00012259,2]
[323148727,1713717481096,345.88,0.00012262,2]
[323148728,1713717481353,345.88,0.00012265,2]
[323148729,1713717513059,742.65,0.0001611,10]
[323148730,1713717513385,226.5,0.00011819,2]
[323148731,1713717526293,936.61,0.00011815,2]
[323148732,1713717712874,-1293.76132614,0.00012343,2]
[323148733,1713717727864,163.17,0.00011786,2]
[323148734,1713717742168,250.0,0.00011786,2]
[323148735,1713717754467,568.12,0.00012055,2]
[323148736,1713717763111,439.68307591,0.00012249,2]
[323148737,1713717793629,246.64,0.00011785,2]
[323148738,1713717854468,826.62,9.888e-05,2]
[323148739,1713717854689,826.62,0.00012152,2]
[323148740,1713717869724,11425.98353231,0.00011806,2]
[323148741,1713717869751,6808.57646769,0.00011806,2]
[323148742,1713717881726,150.13687288,0.00011747,2]
[323148743,1713717886295,2345.45,0.00011901,2]
[323148744,1713717914258,328.0,0.00011822,2]
[323148745,1713718002443,696.23,0.0001611,10]
[323148746,1713718012478,5725.38,0.0001179,2]
[323148747,1713718071658,172.14,0.00011706,2]
[323148748,1713718098412,-153.79,0.00012141,2]
[323148749,1713718098435,-153.79,0.0001218,2]
[323148750,1713718098457,-153.79,0.0001222,2]
[323148751,1713718098478,-153.79,0.0001226,2]
[323148752,1713718098500,-153.79,0.00012299,2]
[323148753,1713718098522,-153.79,0.00012339,2]
[323148754,1713718098544,-537.58418051,0.00012346,2]
[323148755,1713718098566,-383.98072311,0.00012347,2]
[323148756,1713718098590,-153.79,0.00012378,2]
[323148757,1713718098611,-153.79,0.00012418,2]
[323148758,1713718098631,-1848.11509638,0.00012418,2]
[323148759,1713718099301,-4000.0,0.00012418,2]
[323148760,1713718099916,-4000.0,0.00012417,2]
[323148761,1713718100586,-4000.0,0.00012417,2]
[323148762,1713718101216,-4000.0,0.00012417,2]
[323148763,1713718106894,-4000.0,0.00012417,2]
[323148764,1713718107453,-4000.0,0.00012417,2]
[323148765,1713718107953,-4000.0,0.00012417,2]
[323148766,1713718108811,-4000.0,0.00012417,2]
[323148767,1713718109205,-4000.0,0.00012417,2]
[323148768,1713718110174,-3248.80407098,0.00012417,2]
[323148769,1713718110195,-751.19592902,0.00012418,2]
[323148770,1713718110753,-3400.6789746,0.00012418,2]
[323148771,1713718110776,-153.79,0.00012457,2]
[323148772,1713718110798,-153.79,0.00012497,2]
[323148773,1713718110819,-150.0,0.00012521,2]
[323148774,1713718110842,-141.7410254,0.00012536,2]
[323148775,1713718111346,-12.0489746,0.00012536,2]
[323148776,1713718111368,-499.99,0.00012561,2]
[323148777,1713718111388,-150.99,0.00012561,2]
[323148778,1713718111408,-330.04,0.00012561,2]
[323148779,1713718111433,-153.79,0.00012576,2]
[323148780,1713718111454,-150.99,0.00012595,2]
[323148781,1713718111475,-150.99,0.00012595,2]
[323148782,1713718111497,-153.79,0.00012615,2]
[323148783,1713718111519,-150.0,0.00012644,2]
[323148784,1713718111541,-150.0,0.00012644,2]
[323148785,1713718114227,365.73222347,0.0001179,2]
[323148786,1713718117858,173.03375485,0.0001179,2]
[323148787,1713718119267,288.40093877,0.00012417,2]
[323148788,1713718119482,323.6720809,0.0001179,2]
[323148789,1713718121443,361.19639393,0.0001179,2]
[323148790,1713718121578,408.44629625,0.00012417,2]
[323148791,1713718123700,155.0,0.00012417,2]
[323148796,1713718130216,21.88933723,0.00012417,2]
[323148797,1713718130243,343.84288624,0.00012417,2]
[323148798,1713718135811,173.03375485,0.00012417,2]
[323148799,1713718137110,323.6720809,0.00012417,2]
[323148800,1713718138721,288.40093877,0.00012417,2]
[323148801,1713718139737,234.02253581,0.00012417,2]
[323148803,1713718143519,361.19639393,0.00012417,2]
[323148804,1713718143568,408.44629625,0.00012417,2]
[323148806,1713718152210,365.73222347,0.00012417,2]
[323148807,1713718154001,173.03375485,0.00012417,2]
[323148808,1713718161133,323.6720809,0.00012417,2]
[323148809,1713718162286,408.44629625,0.00012417,2]
[323148810,1713718162744,288.40093877,0.00012417,2]
[323148811,1713718163396,308.09981901,0.00012417,2]
[323148812,1713718163417,53.09657492,0.00012417,2]
[323148813,1713718170223,365.73222347,0.00012417,2]
[323148814,1713718171987,173.03375485,0.00012417,2]
[323148815,1713718176052,319.90177754,0.00012417,2]
[323148816,1713718177110,323.6720809,0.00012417,2]
[323148817,1713718179518,408.44629625,0.00012417,2]
[323148818,1713718180815,288.40093877,0.00012417,2]
[323148819,1713718183807,361.19639393,0.00012417,2]
[323148820,1713718188053,319.90177754,0.00012417,2]
[323148821,1713718188233,365.73222347,0.00012417,2]
[323148822,1713718194400,173.03375485,0.00012417,2]
[323148823,1713718195107,323.6720809,0.00012417,2]
[323148824,1713718196739,288.40093877,0.00012417,2]
[323148825,1713718197573,235.77918384,0.00012417,2]
[323148863,1713718232125,-172.66711241,0.00012417,2]
[323148865,1713718232134,-421.11063249,0.00012417,2]
[323148866,1713718232143,-150.0,0.00012417,2]
[323148867,1713718232153,-150.0,0.00012417,2]
[323148868,1713718232162,-150.0,0.00012417,2]
[323148869,1713718232172,-150.0,0.00012417,2]
[323148870,1713718232181,-150.0,0.00012417,2]
[323148871,1713718232191,-150.0,0.00012417,2]
[323148872,1713718232201,-150.0,0.00012417,2]
[323148873,1713718232210,-150.0,0.00012417,2]
[323148874,1713718232220,-150.0,0.00012417,2]
[323148875,1713718232229,-150.0,0.00012417,2]
[323148876,1713718232238,-150.0,0.00012417,2]
[323148877,1713718232247,-150.0,0.00012417,2]
[323148878,1713718232257,-150.0,0.00012417,2]
[323148879,1713718232266,-150.0,0.00012417,2]
[323148880,1713718232275,-470.76153162,0.00012417,2]
[323148881,1713718232285,-150.0,0.00012417,2]
[323148882,1713718232294,-150.0,0.00012417,2]
[323148883,1713718232304,-150.0,0.00012417,2]
[323148884,1713718232313,-319.90177754,0.00012417,2]
[323148885,1713718232323,-150.0,0.00012417,2]
[323148886,1713718232332,-150.0,0.00012417,2]
[323148887,1713718232341,-150.0,0.00012417,2]
[323148888,1713718232351,-150.0,0.00012417,2]
[323148889,1713718232361,-150.0,0.00012417,2]
[323148890,1713718232370,-284.84998968,0.00012417,2]
[323148891,1713718232379,-223.37488952,0.00012417,2]
[323148892,1713718232389,-173.03375485,0.00012417,2]
[323148893,1713718232398,-288.40093877,0.00012417,2]
[323148894,1713718232407,-153.79,0.00012655,2]
[323148895,1713718232416,-153.79,0.00012694,2]
[323148896,1713718232425,-153.79,0.00012734,2]
[323148897,1713718232436,-3256.84443637,0.00012772,2]
[323148898,1713718232445,-153.79,0.00012773,2]
[323148899,1713718232455,-1649.92478334,0.00012797,2]
[323148900,1713718232464,-915.46277688,0.00012823,2]
[323148901,1713718232476,-734.46200643,0.00012823,2]
[323148902,1713718232485,-1649.92478331,0.00012849,2]
[323148903,1713718232494,-251.23282896,0.00012867,2]
[323148904,1713718232503,-114.3803813,0.00012869,2]
[323148905,1713718232514,-66.38763789,0.00012869,2]
[323148906,1713718232523,-280.14852305,0.0001287,2]
[323148907,1713718232545,-550.0,0.0001287,2]
[323148908,1713718232556,-306.20467746,0.0001287,2]
[323148909,1713718232568,-372.77802949,0.0001287,2]
[323148910,1713718232578,-689.38208208,0.00012874,2]
[323148911,1713718232596,-960.54270123,0.00012874,2]
[323148912,1713718232606,-359.18860075,0.00012895,2]
[323148913,1713718232615,-17772.26869802,0.00012895,2]
[323148918,1713718232739,-4036.77363036,0.00012895,2]
[323148936,1713718232879,-615.69079611,0.00012895,2]
[323148938,1713718232888,-802.65935829,0.00012896,2]
[323148940,1713718232899,-260.79473481,0.00012896,2]
[323148948,1713718232969,-380923.85582065,0.00012896,2]
[323148951,1713718232980,-5985.8999,0.00012896,2]